[Event "IX Iberoamericano Championship 2023"]
[Site "Panama City"]
[Date "2023.12.02"]
[Round "9.18"]
[White "Morales Carlos"]
[Black "Ticona Rocabado, Licael Roderick"]
[Result "1-0"]
[ECO "A21"]
[WhiteElo "2102"]
[BlackElo "2412"]
[Annotator "ChessBase"]
[PlyCount "81"]
[EventDate "2023.11.27"]
[EventType "swiss"]
[EventCountry "PAN"]
[SourceTitle "playchess.com"]
[Source "ChessBase"]
[SourceQuality "1"]
[TimeControl "5400+30"]

1. c4 {[%emt 0:05:42]} e5 {[%emt 0:03:56]} 2. Nc3 {[%emt 0:00:17]} f5 {[%emt 0:00:25]} 3. g3 {[%emt 0:00:23]} Nf6 {[%emt 0:00:06]} 4. Nf3 {[%emt 0:00:24]} d6 {[%emt 0:00:15]} 5. d4 {[%emt 0:00:30]} e4 {[%emt 0:00:32]} 6. Nh4 {[%emt 0:00:06]} g6 {[%emt 0:00:46]} 7. Ng2 {[%emt 0:02:48]} Bg7 {[%emt 0:00:15]} 8. h4 {[%emt 0:00:14]} Be6 {[%emt 0:01:43]} 9. Nf4 {[%emt 0:06:04]} Bf7 {[%emt 0:00:06]} 10. h5 {[%emt 0:01:19]} Nxh5 {[%emt 0:00:06]} 11. Nxh5 {[%emt 0:00:07]} gxh5 {[%emt 0:00:03]} 12. e3 {[%emt 0:00:43]} O-O {[%emt 0:00:34]} 13. Be2 {[%emt 0:00:13]} Nd7 {[%emt 0:00:05]} 14. Nd5 {[%emt 0:01:52]} c5 {[%emt 0:07:41]} 15. Bxh5 {[%emt 0:03:35]} Bxd5 {[%emt 0:00:09]} 16. cxd5 {[%emt 0:00:07]} cxd4 {[%emt 0:00:35]} 17. exd4 {[%emt 0:00:13]} Qa5+ {[%emt 0:00:06]} 18. Kf1 {[%emt 0:00:45]} Qxd5 {[%emt 0:00:06]} 19. Be3 {[%emt 0:00:25]} Rac8 {[%emt 0:01:32]} 20. Kg2 {[%emt 0:09:09]} Nb6 {[%emt 0:01:55]} 21. b3 {[%emt 0:01:12]} Qe6 {[%emt 0:00:08]} 22. Be2 {[%emt 0:00:25]} Nd5 {[%emt 0:00:19]} 23. Qd2 {[%emt 0:01:23]} Nxe3+ {[%emt 0:02:26]} 24. fxe3 {[%emt 0:00:02]} d5 {[%emt 0:01:17]} 25. Rac1 {[%emt 0:00:10]} Bh6 {[%emt 0:01:38]} 26. Kf2 {[%emt 0:00:19]} Kg7 {[%emt 0:00:27]} 27. Rxc8 {[%emt 0:03:32]} Rxc8 {[%emt 0:00:10]} 28. Rc1 {[%emt 0:00:03]} Rg8 {[%emt 0:02:57]} 29. Qa5 {[%emt 0:03:40]} Kh8 {[%emt 0:00:11]} 30. Qc7 {[%emt 0:00:10]} Qf6 {[%emt 0:05:31]} 31. Rh1 {[%emt 0:04:28]} Rf8 {[%emt 1:10:00]} 32. Rh5 {[%emt 0:05:12]} Rf7 {[%emt 0:00:00]} 33. Rxh6 {[%emt 0:00:31]} Qxh6 {[%emt 0:00:00]} 34. Qxf7 {[%emt 0:00:03]} Qh2+ {[%emt 0:00:00]} 35. Ke1 {[%emt 0:00:11]} Qxg3+ {[%emt 0:00:00]} 36. Kd2 {[%emt 0:00:05]} Qd6 {[%emt 0:00:00]} 37. Qxf5 {[%emt 0:00:35]} Qb4+ {[%emt 0:00:00]} 38. Kd1 {[%emt 0:00:22]} Kg7 {[%emt 0:00:00]} 39. Qg5+ {[%emt 0:00:17]} Kf8 {[%emt 0:00:00]} 40. Qf6+ {[%emt 0:00:17]} Ke8 {[%emt 0:00:00]} 41. Qh8+ {[%emt 0:01:42]} 1-0